bitfinex/quotes_SOLUSD_20241117
["timestamp","ask_amount","ask_price","bid_price","bid_amount"]
[1731875267188,0.1,234.55,234.53,0.09367462]
[1731875267397,0.1,234.55,234.54,31.54211091]
[1731875267584,0.09038,234.57,234.55,0.09367462]
[1731875267776,0.09038,234.57,234.56,51.18088491]
[1731875268494,0.09038,234.62,234.57,24.12153862]
[1731875268671,0.19038,234.62,234.61,23.902374]
[1731875269773,0.19038,234.62,234.61,28.164674]
[1731875269967,0.19038,234.62,234.59,10.6567]
[1731875269968,0.1,234.6,234.59,10.6567]
[1731875270174,0.19038,234.6,234.59,10.6567]
[1731875270591,0.19038,234.58,234.57,0.12549]
[1731875271173,0.19038,234.58,234.56,14.9213]
[1731875271567,0.19038,234.58,234.56,10.6582]
[1731875271988,0.19038,234.58,234.48,21.3237]
[1731875271989,0.09038,234.53,234.52,31.44883629]
[1731875272188,0.19038,234.53,234.52,4.264]
[1731875272678,0.19038,234.53,234.52,31.44883629]
[1731875272914,0.09038,234.55,234.53,0.09367462]
[1731875273122,0.19038,234.55,234.54,27.18483629]
[1731875273483,0.19038,234.55,234.54,51.08721029]
[1731875273885,0.19038,234.55,234.54,4.38909]
[1731875274284,0.19038,234.55,234.53,0.12549]
[1731875274484,0.19038,234.55,234.54,27.31032629]
[1731875274800,0.19038,234.55,234.54,51.08721029]
[1731875275390,0.19038,234.55,234.36,35.05132251]
[1731875275391,0.19038,234.48,234.43,4.2655]
[1731875275681,0.19038,234.48,234.36,7.86648622]
[1731875275682,0.19038,234.48,234.46,4.2651]
[1731875276302,0.19038,234.48,234.46,31.44993629]
[1731875277099,0.19038,234.48,234.46,4.2651]
[1731875277308,0.19038,234.48,234.47,0.55846662]
[1731875277810,0.09038,234.48,234.47,24.46084062]
[1731875278909,0.09038,234.49,234.48,38.828874]
[1731875279115,0.09038,234.52,234.48,66.01371029]
[1731875279300,0.09038,234.52,234.51,23.99604862]
[1731875279615,0.09038,234.52,234.48,14.9265]
[1731875279793,0.09038,234.52,234.51,23.776884]
[1731875280307,0.09038,234.49,234.48,38.703384]
[1731875280521,0.09038,234.49,234.48,14.9265]
[1731875281006,0.09038,234.49,234.48,31.68943693]
[1731875281224,15.0825,234.54,234.48,31.68943693]
[1731875281225,0.19038,234.53,234.49,0.09367462]
[1731875281517,15.0825,234.54,234.5,16.76293693]
[1731875281518,0.19038,234.51,234.5,16.76293693]
[1731875281816,0.1,234.51,234.5,40.66531093]
[1731875282028,0.19038,234.51,234.5,40.66531093]
[1731875283015,0.19038,234.51,234.5,21.15272693]
[1731875283218,0.09038,234.53,234.51,23.902374]
[1731875283402,0.09038,234.53,234.52,40.66531093]
[1731875285190,0.09038,234.53,234.52,45.14847555]
[1731875285418,0.09038,234.53,234.52,44.92931093]
[1731875287503,0.09038,234.53,234.52,28.166374]
[1731875287896,22.1622,234.6,234.52,28.166374]
[1731875287897,0.1,234.56,234.53,0.34465462]
[1731875288208,0.09038,234.57,234.55,40.75898555]
[1731875288395,0.09038,234.57,234.56,23.99604862]
[1731875288917,0.1,234.58,234.56,38.91754862]
[1731875289286,0.09038,234.57,234.56,38.91754862]
[1731875289492,0.09038,234.59,234.56,38.91754862]
[1731875289708,15.8224,234.6,234.56,38.91754862]
[1731875289709,0.09038,234.57,234.56,38.91754862]
[1731875290099,0.09038,234.59,234.56,38.91754862]
[1731875290300,0.1,234.6,234.59,0.09367462]
[1731875290501,6.34078,234.65,234.61,0.09367462]
[1731875290704,0.09038,234.67,234.64,40.66531093]
[1731875290903,0.19038,234.67,234.65,38.818074]
[1731875291212,21.9728,234.72,234.68,0.09367462]
[1731875291213,15.81278,234.72,234.68,0.09367462]
[1731875291519,0.19038,234.69,234.68,16.76293693]
[1731875291710,0.09038,234.71,234.7,0.12549]
[1731875291891,0.1,234.74,234.71,23.87055862]
[1731875291892,0.09038,234.73,234.71,23.87055862]
[1731875292210,0.09038,234.73,234.72,0.12549]
[1731875292387,0.09038,234.73,234.72,16.88842693]
[1731875292590,0.09038,234.73,234.72,40.66531093]
[1731875292807,0.09038,234.73,234.72,40.75898555]
[1731875293010,0.1,234.74,234.73,23.87055862]
[1731875293214,0.1,234.74,234.73,23.99604862]
[1731875293419,0.19038,234.76,234.74,0.12549]
[1731875293596,0.19038,234.76,234.75,16.76293693]
[1731875293789,0.09038,234.76,234.75,40.88447555]
[1731875293999,15.91278,234.78,234.76,23.99604862]
[1731875294313,15.91278,234.78,234.77,40.75898555]
[1731875294314,0.09038,234.78,234.77,40.75898555]
[1731875294819,0.19038,234.78,234.77,40.75898555]
[1731875294995,0.19038,234.78,234.77,45.01838555]
[1731875295386,0.19038,234.8,234.77,45.01838555]
[1731875295599,0.19038,234.8,234.78,23.902374]
[1731875295807,6.2504,234.84,234.77,10.6487]
[1731875295808,0.19038,234.78,234.77,10.6487]
[1731875296309,0.19038,234.75,234.74,4.38539]
[1731875296611,0.19038,234.73,234.72,14.911]
[1731875296915,0.19038,234.73,234.72,10.6508]
[1731875297113,0.19038,234.71,234.7,4.2607]
[1731875297323,0.19038,234.67,234.61,16.76293693]
[1731875297489,0.19038,234.62,234.61,10.6559]
[1731875298094,0.1,234.6,234.59,4.2626]
[1731875298334,0.19038,234.6,234.57,16.76293693]
[1731875298612,0.1,234.58,234.57,4.263]
[1731875298824,0.19038,234.58,234.56,10.6581]
[1731875301893,0.1,234.51,234.5,16.76293693]
[1731875302098,0.19038,234.52,234.51,23.776884]
[1731875302411,0.1,234.51,234.5,14.9252]
[1731875302897,0.1,234.51,234.5,31.68813693]
[1731875303099,0.1,234.53,234.51,0.09367462]
[1731875303297,0.1,234.53,234.52,21.02693693]
[1731875303931,0.1,234.53,234.52,44.92931093]
[1731875304219,0.1,234.53,234.52,28.166374]
[1731875304403,0.19038,234.51,234.5,15.05069]
[1731875304605,0.19038,234.51,234.5,14.9252]
[1731875304992,0.09038,234.51,234.5,14.9252]
[1731875305803,0.09038,234.48,234.46,21.02783693]
[1731875306021,0.19038,234.48,234.46,4.2649]
[1731875306208,0.19038,234.48,234.44,10.6633]
[1731875306416,1.04157694,234.48,234.44,10.6633]
[1731875307311,0.19038,234.39,234.38,10.666]
[1731875307505,0.19038,234.39,234.38,14.9325]
[1731875307717,0.19038,234.39,234.38,10.666]
[1731875308306,0.19038,234.39,234.37,15.0]
[1731875308921,0.19038,234.39,234.38,4.2665]
[1731875311227,16.95331693,234.39,234.37,15.0]
[1731875311811,16.95331693,234.39,234.38,4.2665]
[1731875312007,0.19038,234.39,234.38,4.2665]
[1731875312704,0.19038,234.39,234.37,15.0]
[1731875313730,16.95331693,234.39,234.37,15.0]
[1731875313920,0.85119694,234.38,234.37,15.0]
[1731875314424,0.85119694,234.38,234.31,10.6695]
[1731875314425,0.19038,234.26,234.25,10.6719]
[1731875316425,0.19038,234.24,234.08,6.0362]
[1731875316622,0.19038,234.24,234.22,4.2693]
[1731875317034,16.95331693,234.24,234.2,14.9441]
[1731875317329,16.95331693,234.24,234.2,10.6744]
[1731875317634,0.19038,234.24,234.2,10.6744]
[1731875317834,0.19038,234.24,234.21,4.2695]
[1731875318426,0.19038,234.24,234.05,6.60188438]
[1731875318427,16.95331693,234.24,234.16,4.2704]
[1731875318610,17.80451387,234.24,234.15,10.6767]
[1731875319025,17.80451387,234.24,234.18,4.2701]
[1731875319724,17.80451387,234.24,234.16,4.2704]
[1731875319925,17.80451387,234.24,234.17,4.2702]
[1731875320126,17.80451387,234.24,234.18,4.2701]
[1731875320432,17.80451387,234.24,234.16,4.2705]
[1731875320637,17.80451387,234.24,234.17,4.2703]
[1731875320930,16.95331693,234.24,234.19,10.6747]
[1731875321129,16.95331693,234.24,234.22,4.2693]
[1731875321907,16.95331693,234.24,234.2,4.2697]
[1731875322928,16.95331693,234.24,234.21,4.2695]
[1731875323725,16.95331693,234.24,234.19,14.9446]
[1731875323926,34.5674508,234.24,234.07,21.3603]
[1731875324114,17.80451387,234.24,234.14,10.6773]
[1731875324316,17.80451387,234.24,234.14,14.9481]
[1731875324515,17.80451387,234.24,234.15,4.2706]
[1731875325907,17.80451387,234.24,234.08,10.6799]
[1731875325908,0.19038,234.09,234.08,10.6799]
[1731875326316,0.19038,234.03,234.01,10.6828]
[1731875326533,0.19038,234.03,234.02,16.76293693]
[1731875326708,0.09038,234.03,234.02,16.76293693]
[1731875327237,0.1,234.05,234.02,16.76293693]
[1731875327446,0.19038,234.03,234.02,16.76293693]
[1731875327930,0.19038,234.03,234.02,21.03603693]
[1731875328535,0.09038,234.03,234.02,21.03603693]
[1731875328718,0.19038,234.05,234.02,21.03603693]
[1731875328908,0.19038,234.03,234.02,38.732784]
[1731875329108,0.19038,234.03,234.02,55.62121093]
[1731875329308,0.1,234.1,234.04,0.34465462]
[1731875329510,0.19038,234.07,234.04,16.88842693]
[1731875329932,0.19038,234.07,234.05,4.2725]
[1731875330333,0.19038,234.07,233.59,6.51655676]
[1731875330334,0.1,234.0,233.94,10.686]
[1731875330532,16.86293693,234.0,233.94,10.686]
[1731875330835,16.86293693,234.0,233.95,4.2743]
[1731875330836,0.1,234.0,233.95,4.2743]
[1731875331040,0.1,233.9,233.78,14.9713]
[1731875331330,0.1,233.9,233.89,16.76293693]
[1731875331331,0.09038,233.9,233.89,16.76293693]
[1731875331722,0.19038,233.9,233.89,16.76293693]
[1731875331913,0.85119694,233.97,233.87,16.76293693]
[1731875331914,0.09038,233.88,233.87,16.76293693]
[1731875332222,0.09038,233.82,233.78,14.9713]
[1731875332423,0.09038,233.8,233.79,16.76293693]
[1731875332622,0.09038,233.82,233.79,16.76293693]
[1731875332818,0.09038,233.82,233.81,16.76293693]
[1731875333017,0.85119694,233.92,233.81,16.76293693]
[1731875333018,0.09038,233.86,233.81,16.76293693]
[1731875333347,0.09038,233.92,233.85,16.76293693]
[1731875333522,0.19038,233.92,233.91,16.76293693]
[1731875333722,0.09038,233.92,233.91,16.76293693]
[1731875333921,0.19038,233.92,233.91,21.03803693]
[1731875334346,0.09038,233.97,233.92,0.09367462]
[1731875334544,0.09038,233.97,233.96,16.88842693]
[1731875334835,0.09038,234.02,233.97,0.12549]
[1731875335045,0.09038,234.02,234.0,16.76293693]
[1731875335335,0.1,234.01,234.0,16.76293693]
[1731875335545,0.09038,234.02,234.0,16.76293693]
[1731875335737,0.1,234.03,234.02,4.2731]
[1731875336138,0.85119694,234.13,234.02,31.71883693]
[1731875336139,0.1,234.05,234.02,31.71883693]
[1731875336319,0.19038,234.08,234.04,40.66531093]
[1731875336525,0.19038,234.08,234.07,16.76293693]
[1731875336823,0.1,234.08,234.07,16.76293693]
[1731875337232,0.19038,234.08,234.07,16.76293693]
[1731875337437,0.1,234.08,234.07,21.16062693]
[1731875337634,0.1,234.08,234.07,45.15667555]
[1731875337834,0.1,234.12,234.08,23.99604862]
[1731875338043,0.19038,234.14,234.12,0.12549]
[1731875338343,0.19038,234.14,234.13,16.76293693]
[1731875338543,0.19038,234.14,234.13,16.88842693]
[1731875338934,0.1,234.14,234.13,40.66531093]
[1731875339145,0.09038,234.11,234.07,14.9527]
[1731875339335,0.1,234.12,234.1,16.76293693]
[1731875339518,0.1,234.14,234.12,23.87055862]
[1731875339721,0.1,234.14,234.11,48.47597386]
[1731875339722,0.1,234.14,234.13,40.63349555]
[1731875340225,0.1,234.19,234.14,23.87055862]
[1731875340419,0.1,234.22,234.19,0.12549]
[1731875340750,0.1,234.22,234.21,16.76293693]
[1731875340925,0.09038,234.23,234.22,23.902374]
[1731875341121,10.1,234.25,234.22,23.902374]
[1731875341330,10.0,234.25,234.24,33.61954848]
[1731875341529,10.0,234.25,234.24,61.91651248]
[1731875342155,0.09038,234.3,234.24,72.58931248]
[1731875342445,0.1,234.32,234.3,23.902374]
[1731875342650,15.2492,234.4,234.25,0.25098]
[1731875342651,0.19038,234.29,234.25,0.25098]
[1731875342824,0.09038,234.29,234.28,16.76293693]
[1731875343023,0.19038,234.29,234.28,16.76293693]
[1731875343838,0.09038,234.15,234.12,10.6782]
[1731875344047,0.09038,234.13,234.12,14.9495]
[1731875344852,0.19038,234.16,234.12,31.71243693]
[1731875345058,0.19038,234.16,234.15,16.76293693]
[1731875345346,0.19038,234.13,234.12,14.9495]
[1731875345731,0.85119694,234.21,234.04,21.3631]
[1731875345732,0.1,234.1,234.04,21.3631]
[1731875346146,0.1,234.1,234.09,16.76293693]
[1731875346459,0.1,234.1,234.09,27.31986501]
[1731875346756,0.1,234.1,234.09,31.59166501]
[1731875346952,0.1,234.1,234.09,31.71715501]
[1731875347327,0.09038,234.11,234.09,31.71715501]
[1731875347554,0.1,234.1,234.09,31.71715501]
[1731875347734,0.09038,234.11,234.09,31.71715501]
[1731875347930,0.1,234.12,234.1,0.12549]
[1731875348156,0.1,234.14,234.12,0.12549]
[1731875348360,0.09038,234.15,234.13,27.31986501]
[1731875348534,0.1,234.14,234.13,27.44535501]
[1731875348949,0.1,234.14,234.13,31.59096501]
[1731875351232,0.1,234.14,234.13,4.2711]
[1731875351431,0.1,234.14,234.13,31.59096501]
[1731875353050,0.1,234.14,234.13,4.2711]
[1731875353549,0.1,234.14,234.13,14.9489]
[1731875353754,0.1,234.14,234.13,10.6778]
[1731875354832,0.1,234.14,234.13,14.9489]
[1731875355961,0.1,234.14,234.13,15.07439]
[1731875356132,0.19038,234.15,234.13,14.9489]
[1731875356453,0.19038,234.15,234.14,7.44535501]
[1731875356642,0.19038,234.15,234.13,14.9489]
[1731875356959,0.19038,234.15,234.14,27.31986501]
[1731875357158,0.1,234.12,234.05,0.25098]
[1731875357343,0.1,234.15,234.12,23.902374]
[1731875357546,0.19038,234.15,234.14,27.31986501]
[1731875358158,0.1,234.15,234.14,27.44535501]
[1731875358542,0.19038,234.17,234.15,0.12549]
[1731875358742,0.19038,234.17,234.16,27.31986501]
[1731875359054,0.19038,234.17,234.14,27.31986501]
[1731875359241,0.19038,234.15,234.12,27.31986501]
[1731875359563,0.19038,234.13,234.1,14.9504]
[1731875359742,0.1,234.13,234.1,14.9504]
[1731875360248,15.2492,234.22,234.12,54.63973002]
[1731875360249,0.19038,234.17,234.12,54.63973002]
[1731875360456,0.19038,234.17,234.16,27.31986501]
[1731875361562,0.1,234.17,234.16,31.59036501]
[1731875361947,0.1,234.17,234.16,31.71585501]
[1731875362353,0.1,234.19,234.17,0.21916462]
[1731875362657,0.1,234.19,234.18,51.19042363]
[1731875362870,0.09038,234.27,234.2,0.09367462]
[1731875363166,0.09038,234.29,234.26,27.31986501]
[1731875363340,0.19038,234.33,234.29,15.06419]
[1731875363663,0.19038,234.33,234.32,27.31986501]
[1731875364363,0.1,234.3,234.29,14.9387]
[1731875364568,0.09038,234.33,234.3,0.12549]
[1731875364742,0.09038,234.33,234.32,27.31986501]
[1731875365456,0.09038,234.33,234.32,31.71295501]
[1731875365654,0.09038,234.35,234.33,0.09367462]
[1731875365844,22.9105,234.38,234.33,0.09367462]
[1731875365845,0.09038,234.39,234.35,0.12549]
[1731875366166,0.09038,234.41,234.39,0.12549]
[1731875366363,0.09038,234.43,234.39,0.12549]
[1731875366842,0.09038,234.43,234.42,16.89130452]
[1731875366843,0.19038,234.43,234.42,16.89130452]
[1731875367033,0.19038,234.43,234.42,16.76581452]
[1731875367435,0.09038,234.43,234.42,16.76581452]
[1731875367634,0.09038,234.43,234.42,21.03161452]
[1731875367635,0.19038,234.43,234.42,21.03161452]
[1731875368548,0.19038,234.37,234.35,10.6674]
[1731875368760,0.1,234.34,234.25,14.9412]
[1731875369067,0.09038,234.32,234.25,14.9412]
[1731875369365,0.09038,234.34,234.26,0.09367462]
[1731875369562,0.1,234.35,234.28,0.09367462]
[1731875369863,0.1,234.37,234.27,16.37637462]
[1731875370050,0.09038,234.39,234.28,24.027864]
[1731875370566,0.09038,234.4,234.36,16.89130452]
[1731875370767,0.19038,234.43,234.37,0.12549]
[1731875370956,0.1,234.41,234.37,0.12549]
[1731875371768,0.1,234.41,234.4,21.15750452]
[1731875372237,0.19038,234.43,234.4,21.15750452]
[1731875372442,0.19038,234.43,234.42,16.89130452]
[1731875372679,0.19038,234.45,234.43,0.12549]
[1731875372848,0.1,234.45,234.44,16.89130452]
[1731875373053,0.1,234.48,234.45,0.12549]
[1731875373275,0.1,234.48,234.47,16.89130452]
[1731875373950,0.1,234.48,234.47,21.15620452]
[1731875374151,0.1,234.5,234.47,48.70980904]
[1731875374444,0.1,234.5,234.49,16.89130452]
[1731875376178,0.1,234.5,234.49,21.15580452]
[1731875378146,0.1,234.5,234.49,21.03031452]
[1731875378346,6.2896,234.55,234.45,21.03101452]
[1731875378347,0.19038,234.48,234.45,21.03101452]
[1731875378542,0.19038,234.46,234.45,4.2652]
[1731875379768,0.19038,234.46,234.45,16.76581452]
[1731875380355,0.1,234.46,234.45,17.11046914]
[1731875380565,0.1,234.46,234.45,16.89130452]
[1731875380748,0.19038,234.46,234.45,16.76581452]
[1731875381257,0.1,234.46,234.45,16.89130452]
[1731875381961,0.1,234.46,234.45,21.37576914]
[1731875382151,0.19038,234.48,234.46,0.12549]
[1731875382351,0.1,234.48,234.46,0.12549]
[1731875382586,0.19038,234.48,234.47,16.76581452]
[1731875382770,0.19038,234.48,234.47,16.89130452]
[1731875384048,0.1,234.48,234.47,16.89130452]
[1731875384275,0.1,234.48,234.47,21.15620452]
[1731875384574,0.19038,234.48,234.47,21.15620452]
[1731875384945,0.1,234.48,234.47,21.15620452]
[1731875386070,0.1,234.48,234.47,21.37536914]
[1731875386272,0.1,234.5,234.48,0.12549]
[1731875386461,0.1,234.5,234.49,16.89130452]
[1731875386775,0.19038,234.52,234.5,0.12549]
[1731875386986,0.19038,234.52,234.51,16.89130452]
[1731875387157,0.09038,234.52,234.51,16.89130452]
[1731875387357,0.19038,234.52,234.51,16.89130452]
[1731875388176,0.09038,234.56,234.52,0.12549]
[1731875388355,0.1,234.57,234.55,16.76581452]
[1731875388853,0.09038,234.56,234.55,16.76581452]
[1731875389352,0.1,234.57,234.56,0.12549]
[1731875389557,0.1,234.57,234.55,6.89130452]
[1731875390264,0.1,234.57,234.56,4.2633]
[1731875392675,0.1,234.57,234.56,4.38879]
[1731875393466,0.1,234.57,234.56,4.60795462]
[1731875394386,0.555172,234.58,234.57,0.12549]
[1731875394553,0.655172,234.58,234.57,16.89130452]
[1731875395162,0.555172,234.58,234.57,16.89130452]
[1731875395371,0.655172,234.58,234.57,16.89130452]
[1731875395776,0.655172,234.58,234.57,16.76581452]
[1731875395978,0.19038,234.54,234.53,16.76581452]
[1731875396181,0.19038,234.54,234.52,4.2639]
[1731875396684,15.9872,234.53,234.52,4.2639]
[1731875397067,15.9872,234.53,234.52,14.73831111]
[1731875398262,0.19038,234.54,234.52,21.14374272]
[1731875398470,0.1,234.54,234.53,0.12549]
[1731875398979,0.1,234.54,234.53,0.34465462]
[1731875399189,2.09038,234.56,234.54,0.21916462]
[1731875399367,2.09038,234.56,234.55,17.09900734]
[1731875400263,2.0,234.56,234.55,45.13929134]
[1731875400477,0.464792,234.58,234.57,24.12153862]
[1731875400660,0.09038,234.62,234.61,17.09900734]
[1731875401497,0.19038,234.62,234.61,16.75435272]
[1731875402289,0.85119694,234.7,234.61,16.75435272]
[1731875402290,0.1,234.69,234.62,24.12153862]
[1731875402475,0.19038,234.7,234.69,16.87984272]
[1731875402783,0.19038,234.7,234.69,16.75435272]
[1731875402988,0.19038,234.68,234.67,16.75435272]
[1731875403180,0.19038,234.68,234.65,16.75435272]
[1731875403428,0.19038,234.66,234.65,16.75435272]
[1731875403590,0.19038,234.62,234.61,31.67255272]
[1731875403761,0.19038,234.58,234.57,16.75435272]
[1731875403969,0.19038,234.56,234.55,16.75435272]
[1731875404269,0.09038,234.54,234.53,16.75435272]
[1731875404476,0.19038,234.54,234.53,16.75435272]
[1731875404683,0.1,234.56,234.54,0.09367462]
[1731875404865,0.1,234.56,234.55,16.84802734]
[1731875405062,0.19038,234.59,234.55,16.84802734]
[1731875405374,0.19038,234.59,234.58,16.75435272]
[1731875405782,0.19038,234.59,234.58,21.01725272]
[1731875405974,0.19038,234.59,234.58,21.14274272]
[1731875406595,0.19038,234.59,234.56,21.01755272]
[1731875406767,0.19038,234.57,234.56,4.38869]
[1731875406965,0.19038,234.57,234.56,21.01755272]
[1731875407160,0.1,234.59,234.57,0.12549]
[1731875407664,0.1,234.59,234.58,0.09367462]
[1731875407885,0.1,234.59,234.58,21.23641734]
[1731875408070,0.09038,234.59,234.58,21.14274272]
[1731875408268,0.1,234.59,234.58,21.36190734]
[1731875408669,0.19038,234.59,234.58,21.36190734]
[1731875409161,0.19038,234.59,234.58,21.14274272]
[1731875409390,0.09038,234.57,234.56,31.67565272]
[1731875409693,0.19038,234.55,234.54,16.75435272]
[1731875409990,0.19038,234.51,234.5,16.75435272]
[1731875410194,0.19038,234.49,234.48,16.75435272]
[1731875410917,0.1,234.49,234.48,33.60238006]
[1731875411090,0.1,234.53,234.49,0.09367462]
[1731875411397,0.1,234.54,234.52,16.75435272]
[1731875411604,0.19038,234.54,234.52,16.75435272]
[1731875411892,0.1,234.51,234.5,15.05069]
[1731875412061,0.1,234.54,234.53,0.12549]
[1731875412490,0.1,234.54,234.51,0.12549]
[1731875412669,0.1,234.52,234.51,0.12549]
[1731875412865,20.0,234.61,234.51,16.97351734]
[1731875412866,0.19038,234.55,234.51,16.97351734]
[1731875413070,0.19038,234.55,234.54,16.87984272]
[1731875413689,0.19038,234.55,234.54,21.14344272]
[1731875413890,0.1,234.55,234.54,21.36260734]
[1731875414092,0.19038,234.57,234.55,0.25098]
[1731875414266,0.19038,234.57,234.56,16.87984272]
[1731875414472,0.19038,234.57,234.56,16.75435272]
[1731875415272,0.19038,234.53,234.5,16.75435272]
[1731875415466,0.19038,234.51,234.48,27.41585272]
[1731875415678,0.19038,234.49,234.48,27.41585272]
[1731875416194,0.19038,234.49,234.48,31.68055272]
[1731875417298,0.09038,234.45,234.44,4.2653]
[1731875417479,0.19038,234.45,234.44,4.2653]
[1731875417883,0.19038,234.43,234.42,13.92656365]
[1731875418778,0.19038,234.43,234.42,9.66076365]
[1731875422804,4.55598,234.43,234.42,9.66076365]
[1731875422986,5.40717694,234.43,234.42,9.66076365]
[1731875423423,0.19038,234.34,234.33,27.42285272]
[1731875423589,0.19038,234.34,234.33,31.69025272]
[1731875423792,0.19038,234.34,234.33,27.42285272]
[1731875424007,0.19038,234.32,234.31,16.75435272]
[1731875424183,0.19038,234.32,234.24,16.75435272]
[1731875424184,0.1,234.23,234.22,4.2694]
[1731875424391,0.1,234.19,234.14,21.3547]
[1731875424698,0.1,234.19,234.15,0.09367462]
[1731875425081,0.1,234.19,234.14,32.032]
[1731875425512,0.1,234.19,234.18,16.84802734]
[1731875425717,0.1,234.19,234.18,21.11822734]
[1731875425887,0.19038,234.19,234.18,21.02455272]
[1731875426087,0.19038,234.17,234.16,21.02485272]
[1731875426391,0.1,234.17,234.16,21.02485272]
[1731875426795,0.19038,234.26,234.16,53.05415272]
[1731875427122,0.09038,234.26,234.25,16.75435272]
[1731875427502,0.19038,234.26,234.24,16.75435272]
[1731875428022,0.1,234.3,234.27,0.12549]
[1731875428188,0.1,234.34,234.3,24.12153862]
[1731875428508,0.1,234.35,234.34,24.12153862]
[1731875428685,0.19038,234.35,234.34,0.12549]
[1731875429014,0.19038,234.38,234.34,0.12549]
[1731875429194,0.19038,234.38,234.29,0.09367462]
[1731875429195,0.19038,234.38,234.37,16.75435272]
[1731875429396,0.09038,234.34,234.31,16.75435272]
[1731875429612,0.19038,234.3,234.29,16.75435272]
[1731875430315,0.19038,234.3,234.29,21.02255272]
[1731875431218,0.19038,234.3,234.29,21.27353272]
[1731875431406,0.19038,234.3,234.29,21.14804272]
[1731875432216,0.19038,234.3,234.29,21.02255272]
[1731875432801,0.19038,234.3,234.29,4.2682]
[1731875434416,0.19038,234.3,234.28,10.6709]
[1731875434622,0.19038,234.24,234.23,4.2693]
[1731875434917,0.1,234.12,234.06,25.6344]
[1731875435117,0.19038,234.15,234.1,10.6791]
[1731875435322,0.1,234.13,234.11,0.09367462]
[1731875435696,0.19038,234.15,234.1,10.6791]
[1731875435916,0.19038,234.11,234.1,10.6791]
[1731875436098,0.19038,234.11,234.1,27.43345272]
[1731875436421,0.19038,234.11,234.06,4.2724]
[1731875436613,0.19038,234.07,234.06,4.2724]
[1731875437517,0.1,234.07,234.06,21.02675272]
[1731875437727,0.19038,234.07,234.06,21.02675272]
[1731875437896,0.1,234.09,234.06,21.12042734]
[1731875438098,0.1,234.09,234.08,16.75435272]
[1731875438516,0.1,234.09,234.08,16.84802734]
[1731875438903,0.1,234.09,234.08,17.09900734]
[1731875439111,0.1,234.09,234.08,17.00533272]
[1731875440329,0.1,234.09,234.08,21.15184272]
[1731875440952,0.1,234.11,234.08,32.05110734]
[1731875441124,0.1,234.11,234.1,16.75435272]
[1731875441419,0.09038,234.14,234.11,0.34465462]
[1731875441725,0.19038,234.14,234.13,0.25098]
[1731875441910,0.19038,234.14,234.13,0.12549]
[1731875442106,0.09038,234.14,234.13,0.12549]
[1731875442313,0.19038,234.14,234.13,4.2711]
[1731875442519,0.09038,234.14,234.13,4.52208]
[1731875442707,0.19038,234.16,234.14,0.12549]
[1731875442913,0.09038,234.2,234.16,0.34465462]
[1731875443112,0.09038,234.2,234.19,16.87984272]
[1731875443920,0.09038,234.2,234.19,17.09900734]
[1731875444422,0.1,234.23,234.2,0.34465462]
[1731875444730,0.1,234.28,234.23,24.12153862]
[1731875444930,0.19038,234.26,234.25,0.12549]
[1731875445510,0.1,234.28,234.25,0.12549]
[1731875446121,0.1,234.28,234.27,17.09900734]
[1731875446425,0.1,234.28,234.27,21.36750734]
[1731875447207,0.09038,234.31,234.28,0.34465462]
[1731875447208,0.19038,234.31,234.28,0.34465462]
[1731875447523,0.19038,234.31,234.27,31.69425272]
[1731875447524,0.1,234.35,234.31,0.34465462]
[1731875447703,15.7099,234.44,234.35,0.34465462]
[1731875447909,6.2984,234.45,234.42,16.75435272]
[1731875448105,0.85119694,234.5,234.42,16.75435272]
[1731875448314,0.85119694,234.5,234.44,16.75435272]
[1731875449201,0.85119694,234.5,234.44,11.75435272]
[1731875449407,22.0083,234.51,234.46,16.75435272]
[1731875450425,22.0083,234.51,234.48,16.75435272]